Cogmind - Beta 12 X1 @@@ ROGUE MODE // 2022.07.14 @ 14:13:25 Player: btmk16 Result: Destroyed by as-50067 with Assembled Focal Cannon Performance ------------- Evolutions (4) 2000 Regions Visited (15) 3000 Robots Destroyed (161) 805 Value Destroyed (5907) 5907 Prototype IDs (23) 460 Alien Tech Used (0) 0 Bonus (2366) 2366 TOTAL SCORE: 14538 Bonus ------- High Alert Combat Kills 37 Follower Combat Kills 175 Met Data Miner 300 Destroyed Z-Imprinter 1000 Triggered Deep Caves Wall 500 Exposed GOLEM Chamber 500 Friendly Fire -146 Cogmind --------- Core Integrity 0/850 Matter 285/300 Energy 84/100 System Corruption 4% Temperature Cool (6) Movement Core (50) Location -6/Deep Caves Parts ------- > --- POWER (2) -------- (None) > --- PROPULSION (2) --- (None) > --- UTILITY (8) ------ (None) > --- WEAPON (3) ------- (None) > --- INVENTORY (5) ---- Experimental Sensor Array GOLEM Unit GOLEM Unit Peak State ------------ > --- POWER ------------ Improved Deuterium Engine Reinforced Deuterium Engine > --- PROPULSION ------- Armored Huge Wheel > --- UTILITY ---------- Coolant Injector Huge Storage Unit Enhanced Optical Array Advanced Targeting Computer Hardened Heavy Armor Plating Makeshift Thermal Plating > --- WEAPON ----------- Magnetic Acceleration Cannon Long-range Missile Launcher Makeshift Spear > --- INVENTORY -------- Armored Wheel Coolant Injector Large Storage Unit Compact Battery Matter Compressor Experimental Sensor Array Makeshift Armor Plating Makeshift Armor Plating GOLEM Unit GOLEM Unit GOLEM Unit Phasing AFG High-powered Shock Rifle High-powered Shock Rifle High-powered Shock Rifle Battle Cannon Heavy Missile Launcher RU-N14's Throwing Claymores RU-N14's Throwing Claymores RU-N14's Throwing Claymores RU-N14's Throwing Claymores GAL Module [Rating: 70] Favorites ----------- Power Reinforced Deuterium Engine Engine Reinforced Deuterium Engine Power Core Light Nuclear Core Propulsion Wheel Treads Light Treads Leg Aluminum Leg Wheel Wheel Hover Unit Aerolev Unit Utility Huge Storage Unit Device Improved Heat Sink Storage Huge Storage Unit Processor Advanced Visual Processing Unit Hackware Hacking Suite Protection Makeshift Armor Plating Weapon Magnetic Acceleration Cannon Energy Gun Improved Heavy Laser Energy Cannon Advanced Beam Cannon Ballistic Gun Flak Gun Ballistic Cannon Magnetic Acceleration Cannon Launcher Long-range Missile Launcher Special Weapon RU-N14's Throwing Claymores Impact Weapon Heavy Flail Piercing Weapon Makeshift Spear Build | -11 -10 -10 -9 -9 -8 -7 -7 -7 -7 -6 -6 -6 -6 -6 -6 ------- Run | Scr Mat Min Mat Min Mat Fac Low Low Dat Pro Fac Low Low Zio Dee Slots Evolved 8 | . . . 2 . 2 2 . . . . 2 . . . . Power 1 | . . . . . . 1 . . . . . . . . . Propulsion . | . . . . . . . . . . . . . . . . Utility 6 | . . . 1 . 2 1 . . . . 2 . . . . Weapon 1 | . . . 1 . . . . . . . . . . . . Parts Attached 199 | . 6 6 13 1 21 19 4 12 . 12 55 11 7 12 20 Power 21 | . . 1 1 . 1 3 . 2 . 1 7 2 . 3 . Engine 15 | . . 1 1 . 1 1 . . . 1 6 2 . 2 . Core 6 | . . . . . . 2 . 2 . . 1 . . 1 . Reactor . | . . . . . . . . . . . . . . . . Propulsion 35 | . 1 2 3 1 8 4 1 1 . 1 9 1 1 . 2 Treads 3 | . . 2 1 . . . . . . . . . . . . Leg 1 | . 1 . . . . . . . . . . . . . . Wheel 30 | . . . 2 1 7 4 1 1 . 1 9 1 1 . 2 Hover 1 | . . . . . 1 . . . . . . . . . . Flight . | . . . . . . . . . . . . . . . . Utility 63 | . 2 . 4 . 5 4 1 5 . 4 21 6 3 2 6 Device 28 | . 1 . 1 . 4 2 . 1 . 2 10 1 2 2 2 Storage 4 | . 1 . 1 . . . . . . . . 2 . . . Processor 6 | . . . . . 1 2 . 1 . . 1 . 1 . . Hackware 2 | . . . . . . . . . . . 2 . . . . Protection 23 | . . . 2 . . . 1 3 . 2 8 3 . . 4 Artifact . | . . . . . . . . . . . . . . . . Weapon 80 | . 3 3 5 . 7 8 2 4 . 6 18 2 3 7 12 Energy Gun 24 | . 1 1 1 . 5 1 . 1 . 3 4 . 1 2 4 Energy Cannon 3 | . . . 2 . . 1 . . . . . . . . . Ballistic Gun 24 | . 1 . 1 . 2 5 1 3 . 2 8 1 . . . Ballistic Cannon 12 | . . 1 1 . . . . . . . 5 . 1 2 2 Launcher 12 | . 1 1 . . . 1 1 . . 1 1 1 1 . 4 Special Weapon 1 | . . . . . . . . . . . . . . . 1 Impact Weapon 1 | . . . . . . . . . . . . . . 1 . Slashing Weapon . | . . . . . . . . . . . . . . . . Piercing Weapon 3 | . . . . . . . . . . . . . . 2 1 Special Melee Weapon . | . . . . . . . . . . . . . . . . Unidentified Prototypes 11 | . . . 3 . 2 1 . 1 . 1 1 . . 1 1 Corrupted Parts 4 | . . . . . . . . . . 1 3 . . . . System Corruption 12 | . . . . . . . . . . 4 8 . . . . Parts Lost 67 | . 1 1 . 1 8 3 6 5 . 2 21 3 2 . 14 Power 11 | . . . . . 1 . 2 . . . 3 2 1 . 2 Propulsion 13 | . . . . 1 2 1 1 . . . 4 1 . . 3 Utility 22 | . . . . . 1 1 1 3 . 1 8 . 1 . 6 Weapon 21 | . 1 1 . . 4 1 2 2 . 1 6 . . . 3 Highest Loss Streak 8 | . 1 1 . 1 2 1 6 4 . 2 4 2 2 . 8 To Critical Strikes 1 | . . . . . 1 . . . . . . . . . . Average Slot Usage (%) 93 | . 94 100 96 99 96 99 96 83 70 90 92 87 93 96 86 Engine 9 | . 14 14 11 11 8 13 . . . . 11 1 6 8 12 Core 1 | . . . . . . 1 13 6 15 15 . . . 1 . Treads 2 | . . 23 16 . . . . . . . . . . . . Leg 2 | . 28 4 . . . . . . . . . . . . . Wheel 11 | . . . 5 21 17 14 14 15 15 15 12 13 13 13 9 Device 14 | . 9 14 11 11 24 19 14 3 7 7 16 3 11 17 12 Storage 9 | . 14 14 11 11 9 7 7 7 7 7 6 15 13 13 6 Processor 9 | . . . . . 8 18 23 14 7 7 6 13 13 13 13 Hackware 1 | . . . . . . . . . . . 6 4 . . . Protection 7 | . . . 9 11 . . . 11 15 12 11 14 13 8 9 Energy Gun 8 | . 7 25 3 . 7 9 6 4 . 10 6 6 13 10 1 Energy Cannon 1 | . . . 6 11 4 . . . . . . . . . . Ballistic Gun 7 | . 20 . 9 11 11 12 14 16 1 11 5 5 . . . Ballistic Cannon 3 | . . 2 11 11 2 . . . . . 4 6 5 6 5 Naked Turns . | . . . . . . . . . . . . . . . . Heaviest Build 158 | 13 29 36 105 105 105 111 105 127 127 130 141 136 131 136 158 Greatest Support 40 | 20 20 40 40 26 26 20 20 22 22 28 32 28 32 32 32 Greatest Overweight (x) 13 | . 1 1 4 4 9 5 5 5 5 5 13 8 7 4 12 Average Overweight (x) 3 | . . . 2 4 4 5 4 4 5 4 4 3 3 3 4 Largest Inventory Capacity 25 | . 15 15 25 25 25 25 25 25 25 25 25 25 25 25 25 Average Capacity 23 | . 11 15 21 25 25 25 25 25 25 25 25 25 25 25 25 Most Carried 25 | . 15 15 25 25 25 25 25 23 24 25 25 25 25 25 25 Average Carried 22 | . 9 14 18 24 24 24 24 20 23 21 24 24 24 24 23 Final Capacity 25 | 8 15 15 25 25 25 25 25 25 25 25 25 25 25 25 5 Final Carried 25 | 6 15 15 25 25 25 25 21 21 24 25 25 25 24 25 5 Class Distribution -------------------- 29% | Mutant 19% | Scavenger-Skirmisher 15% | Scavenger-Tank 14% | Tank 5% | Derelict-Mutant 5% | Derelict-Tank 4% | Hacker-Tank 3% | Scavenger-Mutant Dominant Class ---------------- Mutant | -10/Materials Mutant | -10/Mines Scavenger-Tank | -9/Materials Scavenger-Tank | -9/Mines Scavenger-Skirmisher | -8/Materials Scavenger-Skirmisher | -7/Factory Scavenger-Skirmisher | -7/Lower Caves Scavenger-Tank | -7/Lower Caves Mutant | -7/Data Miner Scavenger-Tank | -6/Proximity Caves Hacker-Tank | -6/Factory Mutant | -6/Lower Caves Mutant | -6/Lower Caves Tank | -6/Zion Derelict-Mutant | -6/Deep Caves Resources | -11 -10 -10 -9 -9 -8 -7 -7 -7 -7 -6 -6 -6 -6 -6 -6 ----------- Run | Scr Mat Min Mat Min Mat Fac Low Low Dat Pro Fac Low Low Zio Dee Matter Collected 5515 | 200 181 98 382 177 795 335 70 384 . 234 1417 447 128 60 607 Remotely . | . . . . . . . . . . . . . . . . Salvage Created 6979 | . 385 56 717 142 1685 452 137 273 . 144 1453 373 289 . 873 Parts 338 | . 17 9 35 8 85 36 14 22 . 9 68 11 14 . 10 Haulers Intercepted 4 | . . . 1 . 2 1 . . . . . . . . . Recyclers Shooed 5 | . 1 . 2 . 1 . . . . . 1 . . . . Parts Field Recycled . | . . . . . . . . . . . . . . . . Retrieved Matter . | . . . . . . . . . . . . . . . . Parts Self-Destructed 62 | . . . . . . . 12 17 . 10 . 11 12 . . Prevented . | . . . . . . . . . . . . . . . . Kills | -11 -10 -10 -9 -9 -8 -7 -7 -7 -7 -6 -6 -6 -6 -6 -6 ------- Run | Scr Mat Min Mat Min Mat Fac Low Low Dat Pro Fac Low Low Zio Dee Combat Hostiles Destroyed 180 | . 10 3 12 4 30 7 7 14 . 4 29 2 6 . 52 Melee 4 | . . . . . . . . . . . . . . . 4 Guns 72 | . 7 . 4 1 17 5 4 8 . 1 21 . 4 . . Cannons 32 | . . . 7 3 13 1 . . . . 4 . . . 4 AOE 70 | . 3 3 . . . 1 3 6 . 3 4 2 2 . 43 Classes Destroyed 19 | . 3 1 5 2 3 1 . . . . . 1 . . 3 Worker 6 | . . . 3 . 1 1 . . . . 1 . . . . Builder 2 | . . . 1 . . . . . . . 1 . . . . Tunneler 6 | . . 2 . . 3 1 . . . . . . . . . Hauler 4 | . . . 1 . 2 1 . . . . . . . . . Recycler 5 | . 1 . 2 . 2 . . . . . . . . . . Operator 2 | . . . 1 . 1 . . . . . . . . . . Watcher 1 | . . . . . 1 . . . . . . . . . . Swarmer 40 | . 3 3 1 . 5 . 7 11 . 2 3 . 5 . . Grunt 49 | . 7 . 9 2 14 . . 2 . 2 13 . . . . Brawler 2 | . . . . . 1 . . 1 . . . . . . . Duelist 2 | . . . . 1 1 . . . . . . . . . . Sentry 18 | . . . 2 . 8 2 . . . . 5 . 1 . . Hunter 8 | . . . . . 1 3 . . . . 2 2 . . . Programmer 8 | . . . . . . 2 . . . . 6 . . . . Z-Light 4 | . . . . . . . . . . . . . . . 4 Packrat 1 | . . . . . . . . . . . . 1 . . . Samaritan 2 | . . . . . . . . . . . . 1 1 . . Assembler 2 | . . . . . . . . . . . . . . . 2 Assembled 42 | . . . . 1 . . . . . . . . . . 41 Golem 6 | . . . . . . . . . . . . . . . 6 Best Kill Streak 42 | . 3 3 3 3 7 3 4 4 . 4 4 2 3 . 42 Combat Bots Only 40 | . 3 3 2 3 5 2 4 4 . 4 4 2 3 . 40 Max Kills in Single Turn 22 | . 2 1 2 1 2 2 2 2 . 3 2 1 2 . 22 Gunslinging 1 | . . . . . . . 1 . . . . . . . . Exploded 22 | . 2 1 . . . 1 2 2 . 3 2 1 2 . 22 Melee 1 | . . . . . . . . . . . . . . . 1 Uniques/NPCs Destroyed 1 | . . . . . . . . . . . . . . . 1 Z-Imprinter (-6/Deep Caves) Combat | -11 -10 -10 -9 -9 -8 -7 -7 -7 -7 -6 -6 -6 -6 -6 -6 -------- Run | Scr Mat Min Mat Min Mat Fac Low Low Dat Pro Fac Low Low Zio Dee Damage Taken 10254 | . 345 145 348 68 1128 717 405 586 . 236 3300 251 317 . 2408 Core 1476 | . 46 29 33 . 206 151 76 57 . . 360 47 134 . 337 Absorbed by Shields 66 | . . . . . . . . . . . . . . . 66 Redirected to Shielding 46 | . . . 18 . . . . . . . 28 . . . . Core Remaining (%) 76 | 100 . 70 . 91 62 . . . . 59 . . . . . Volleys Fired 405 | . 38 7 28 4 84 27 7 25 . 5 95 23 13 . 49 Largest 3 | . 2 2 3 3 3 3 3 3 . 3 3 3 3 . 3 Hottest 180 | . 70 94 135 135 162 152 111 84 . 93 169 157 158 . 180 Shots Fired 959 | . 74 14 84 12 244 76 15 64 . 13 233 42 26 . 62 Gun 729 | . 72 10 35 4 179 73 12 60 . 12 203 35 25 . 9 Cannon 185 | . . 1 49 8 65 1 . . . . 27 3 . . 31 Launcher 38 | . 2 3 . . . 2 3 4 . 1 3 4 1 . 15 Special 7 | . . . . . . . . . . . . . . . 7 Kinetic 545 | . 60 1 56 8 133 38 8 48 . 6 129 20 7 . 31 Thermal 277 | . 12 7 28 4 82 21 . 12 . 4 71 18 18 . . Explosive 45 | . 2 3 . . . 2 3 4 . 1 3 4 1 . 22 Electromagnetic 92 | . . 3 . . 29 15 4 . . 2 30 . . . 9 Robot Hit Streak 31 | . 16 8 6 4 9 17 6 7 . 5 31 10 16 . 17 Robot Miss Streak 9 | . 3 2 9 1 8 4 9 8 . 5 6 2 2 . 2 Penetration Max 1 | . . . . . 1 1 . . . . . 1 1 . . Secondary Targets 11 | . . . . . 2 . 2 2 . . 5 . . . . Max Gunslinging Chain 2 | . . . . . 1 . 2 1 . . 1 . . . . Shots Hit Robots 689 | . 44 12 50 6 147 58 8 38 . 11 184 23 18 . 90 Core Hits 522 | . 23 6 37 7 84 27 17 34 . 14 106 15 10 . 142 Critical Kills 3 | . . . 1 . 1 . . . . . 1 . . . . Critical Parts Destroyed 1 | . . . . . . . . . . . 1 . . . . Critical Strikes 22 | . . . 1 . 3 1 . 1 . . 8 . . . 8 Burn 6 | . . . . . 2 1 . 1 . . 2 . . . . Meltdown 1 | . . . 1 . . . . . . . . . . . . Destroy 4 | . . . . . 1 . . . . . 3 . . . . Blast 5 | . . . . . . . . . . . 3 . . . 2 Impale 6 | . . . . . . . . . . . . . . . 6 Melee Attacks 71 | . . . . . . . . . . . . . . 9 62 Impact 9 | . . . . . . . . . . . . . . 9 . Slashing . | . . . . . . . . . . . . . . . . Piercing 62 | . . . . . . . . . . . . . . . 62 Sneak Attacks . | . . . . . . . . . . . . . . . . Combat Hostiles . | . . . . . . . . . . . . . . . . Follow-up Attacks . | . . . . . . . . . . . . . . . . Damage Inflicted 20797 | . 688 304 996 121 2637 1140 324 1226 . 487 4067 816 605 . 7386 Guns 8673 | . 470 101 266 32 1793 1001 131 630 . 161 3046 518 395 . 129 Cannons 2872 | . . 13 686 89 844 26 . . . . 596 19 . . 599 Explosions 7226 | . 218 190 . . . 113 193 596 . 326 420 279 210 . 4681 Melee 1763 | . . . . . . . . . . . . . . . 1763 Ramming 49 | . . . 44 . . . . . . . 5 . . . . Kinetic 6675 | . 396 13 555 58 1360 551 101 500 . 89 2036 250 167 . 599 Thermal 4088 | . 74 86 397 63 933 350 . 130 . 37 1415 287 228 . 88 Explosive 6874 | . 218 166 . . . 113 193 596 . 326 180 279 210 . 4593 Electromagnetic 1134 | . . 39 . . 344 126 30 . . 35 431 . . . 129 Impact . | . . . . . . . . . . . . . . . . Slashing 214 | . . . . . . . . . . . . . . . 214 Piercing 1763 | . . . . . . . . . . . . . . . 1763 Highest Corruption 20 | . . . . . . 3 . 16 16 20 15 15 15 15 4 Average Corruption 11 | . . . . . . 2 . 15 16 16 10 15 15 15 4 Corruption Purged 6 | . . . . . . 3 . . . . 3 . . . . Corruption Blocked . | . . . . . . . . . . . . . . . . Effects 189 | . . . . . . 6 . 24 4 15 71 37 17 3 12 Message Errors 47 | . . . . . . . . 3 1 6 23 7 3 . 4 Matter Fused 43 | . . . . . . 1 . 9 1 4 18 5 3 . 2 Heat Flow Errors 25 | . . . . . . . . 1 . 1 8 9 3 1 2 Energy Discharges 25 | . . . . . . 2 . 3 2 2 6 4 2 2 2 Data Loss (minor) 22 | . . . . . . 3 . 4 . 1 5 4 4 . 1 Data Loss (major) 11 | . . . . . . . . 1 . . 7 3 . . . Misfires 4 | . . . . . . . . 2 . . 1 . 1 . . Alerts 3 | . . . . . . . . 1 . 1 . 1 . . . Weapon Failures 9 | . . . . . . . . . . . 3 4 1 . 1 Overload Shots . | . . . . . . . . . . . . . . . . Overflow Damage 475 | . . 5 9 . . . 44 30 . . 95 . 53 . 239 Projectiles 84 | . . . 5 . . . . . . . 56 . . . 23 Explosions 387 | . . 5 . . . . 44 30 . . 39 . 53 . 216 Melee 4 | . . . 4 . . . . . . . . . . . . Knockbacks 27 | . . 1 6 . 9 . . . . . 7 1 . . 3 Impact . | . . . . . . . . . . . . . . . . Kinetic 27 | . . 1 6 . 9 . . . . . 7 1 . . 3 Secondary . | . . . . . . . . . . . . . . . . Self-Inflicted Damage 577 | . . 57 22 . . 20 37 26 . 11 280 . . . 124 Shots 14 | . . 3 . . . 1 1 1 . 1 5 . . . 2 Rammed 2 | . . . 1 . . . . . . . 1 . . . . Targets Rammed 2 | . . . 1 . . . . . . . 1 . . . . Kicked . | . . . . . . . . . . . . . . . . Crushed . | . . . . . . . . . . . . . . . . Highest Temperature 585 | . 82 57 242 81 237 12 . 238 . 99 228 320 585 157 196 Average Temperature 81 | . 18 26 50 40 88 7 . 41 . 27 59 94 184 89 95 Received Heat Transfer 2161 | . 180 36 129 6 405 138 24 45 . 99 714 26 42 . 317 Effects 12 | . . . . . . . . . . . 2 . 10 . . Shutdowns 3 | . . . . . . . . . . . . . 3 . . Interference 5 | . . . . . . . . . . . 2 . 3 . . Short Circuit 2 | . . . . . . . . . . . . . 2 . . Damage (minor) 1 | . . . . . . . . . . . . . 1 . . Damage (core) 1 | . . . . . . . . . . . . . 1 . . Siege Activations . | . . . . . . . . . . . . . . . . Robots Corrupted 1 | . . . . . . . . . . . . . . . 1 Combat Hostiles 1 | . . . . . . . . . . . . . . . 1 Parts Fried 1 | . . . . . . . . . . . 1 . . . . Impact Corruptions 1 | . . . 1 . . . . . . . . . . . . Robots Melted 1 | . . . 1 . . . . . . . . . . . . Combat Hostiles 1 | . . . 1 . . . . . . . . . . . . Parts Melted 9 | . . . 3 . 2 2 . . . . 2 . . . . Heat Transferred 8133 | . 222 235 777 111 2109 814 . 333 . 74 2594 407 407 . 50 Parts Sabotaged . | . . . . . . . . . . . . . . . . Parts Stolen . | . . . . . . . . . . . . . . . . Parts Stripped . | . . . . . . . . . . . . . . . . Power Chain Reactions 4 | . . 1 . . . . . . . . 2 . . . 1 Missiles Intercepted . | . . . . . . . . . . . . . . . . Alert | -11 -10 -10 -9 -9 -8 -7 -7 -7 -7 -6 -6 -6 -6 -6 -6 ------- Run | Scr Mat Min Mat Min Mat Fac Low Low Dat Pro Fac Low Low Zio Dee Peak Influence 478 | . 240 147 214 143 478 244 . . . . 426 . . . . Initial 170 | . . 5 3 83 55 170 . . . . 112 . . . . Average 153 | . 84 57 89 113 238 100 . . . . 257 . . . . Maximum Alert Level 2 | . 1 . 1 . 2 1 . . . . 2 . . . . Low Security (%) 67 | . 96 100 98 100 37 92 . . . . 19 . . . . Level 1 31 | . 3 . 1 . 53 7 . . . . 80 . . . . Level 2 1 | . . . . . 9 . . . . . . . . . . Level 3 . | . . . . . . . . . . . . . . . . Level 4 . | . . . . . . . . . . . . . . . . Level 5 . | . . . . . . . . . . . . . . . . High Security . | . . . . . . . . . . . . . . . . Max Security . | . . . . . . . . . . . . . . . . Squads Dispatched 29 | . 1 2 3 . 6 4 . . . . 13 . . . . Investigation 6 | . 1 1 . . 1 1 . . . . 2 . . . . Extermination 7 | . . . . . . 2 . . . . 5 . . . . Reinforcement 9 | . . . 3 . 2 1 . . . . 3 . . . . Assault 1 | . . 1 . . . . . . . . . . . . . Garrison 6 | . . . . . 3 . . . . . 3 . . . . Intercept . | . . . . . . . . . . . . . . . . Searches Triggered . | . . . . . . . . . . . . . . . . Data Miner Redirects 1 | . . . . . . . . . . . 1 . . . . Construction Impeded 1 | . . . . . . . . . . . 1 . . . . Haulers Reinforced . | . . . . . . . . . . . . . . . . Active Scanning Responses . | . . . . . . . . . . . . . . . . Cargo Convoy Interrupts . | . . . . . . . . . . . . . . . . Stealth | -11 -10 -10 -9 -9 -8 -7 -7 -7 -7 -6 -6 -6 -6 -6 -6 --------- Run | Scr Mat Min Mat Min Mat Fac Low Low Dat Pro Fac Low Low Zio Dee Distress Signals 8 | . . . 1 1 6 . . . . . . . . . . Communications Jammed . | . . . . . . . . . . . . . . . . Distress Signals . | . . . . . . . . . . . . . . . . Times Spotted 248 | . 17 4 19 4 42 11 8 16 . 7 34 5 6 . 75 Peak Tracking Total 38 | . 4 3 3 3 6 3 4 4 . 7 5 3 3 . 38 Tactical Retreats 16 | . . . 2 . 4 1 . 2 . . 1 . . . 6 Traps | -11 -10 -10 -9 -9 -8 -7 -7 -7 -7 -6 -6 -6 -6 -6 -6 ------- Run | Scr Mat Min Mat Min Mat Fac Low Low Dat Pro Fac Low Low Zio Dee Traps Triggered 6 | . . . . . 1 . . . . . 5 . . . . Indirectly . | . . . . . . . . . . . . . . . . Trap Hack Attempts . | . . . . . . . . . . . . . . . . Triggered . | . . . . . . . . . . . . . . . . Disarmed . | . . . . . . . . . . . . . . . . Reprogrammed . | . . . . . . . . . . . . . . . . Reused . | . . . . . . . . . . . . . . . . Traps Extracted . | . . . . . . . . . . . . . . . . Installed . | . . . . . . . . . . . . . . . . Triggered . | . . . . . . . . . . . . . . . . Machines | -11 -10 -10 -9 -9 -8 -7 -7 -7 -7 -6 -6 -6 -6 -6 -6 ---------- Run | Scr Mat Min Mat Min Mat Fac Low Low Dat Pro Fac Low Low Zio Dee Machines Disabled 14 | . . 3 . . 2 . . . . . 7 . . . 2 Max in Single Turn 3 | . . 3 . . 1 . . . . . 3 . . . 1 Garrison Access 2 | . . . . . 1 1 . . . . . . . . . Machines Sabotaged . | . . . . . . . . . . . . . . . . Garrisons Compromised . | . . . . . . . . . . . . . . . . Overloaded Fab Kills . | . . . . . . . . . . . . . . . . Hacking | -11 -10 -10 -9 -9 -8 -7 -7 -7 -7 -6 -6 -6 -6 -6 -6 --------- Run | Scr Mat Min Mat Min Mat Fac Low Low Dat Pro Fac Low Low Zio Dee Machines Accessed 30 | . 6 1 4 1 4 3 1 . 3 . 6 1 . . . Terminals 19 | . 6 . 4 1 3 2 . . . . 3 . . . . Fabricators 2 | . . . . . . . . . . . 2 . . . . Repair Stations . | . . . . . . . . . . . . . . . . Recycling Units . | . . . . . . . . . . . . . . . . Scanalyzers 1 | . . . . . . . . . . . 1 . . . . Garrison Access 2 | . . . . . 1 1 . . . . . . . . . Total Hacks 84 | . 11 1 9 3 8 6 1 . 25 . 19 1 . . . Successful 53 | . 5 1 5 . 6 2 1 . 25 . 7 1 . . . Failed 31 | . 6 . 4 3 2 4 . . . . 12 . . . . Catastrophic 4 | . 1 . 2 . . 1 . . . . . . . . . Database Lockouts . | . . . . . . . . . . . . . . . . Manual 21 | . 4 . 5 . 5 . . . . . 6 . . 1 . Terminals 43 | . 11 . 9 3 7 4 . . . . 9 . . . . Fabricators 5 | . . . . . . . . . . . 5 . . . . Repair Stations . | . . . . . . . . . . . . . . . . Recycling Units . | . . . . . . . . . . . . . . . . Scanalyzers 5 | . . . . . . . . . . . 5 . . . . Garrison Access 3 | . . . . . 1 2 . . . . . . . . . Terminal Hacks 44 | . 4 1 4 . 5 1 1 . 25 . 2 1 . . . Record 6 | . . . . . . . . . 6 . . . . . . Part Schematic 10 | . . . . . . . . . 10 . . . . . . Robot Schematic 6 | . . . . . . . . . 6 . . . . . . Prototype ID Bank 4 | . . . 1 . . . . . 3 . . . . . . Open Door 3 | . . 1 . . . . 1 . . . . 1 . . . Level Access Points 1 | . . . 1 . . . . . . . . . . . . Branch Access Points 4 | . . . 1 . 1 1 . . . . 1 . . . . Alert Level 2 | . . . 1 . 1 . . . . . . . . . . Unreport Threat 3 | . . . . . 2 . . . . . 1 . . . . Hauler Manifests 2 | . 1 . . . 1 . . . . . . . . . . Zone Layout 3 | . 3 . . . . . . . . . . . . . . Fabricator Hacks 1 | . . . . . . . . . . . 1 . . . . Network Status 1 | . . . . . . . . . . . 1 . . . . Repair Station Hacks . | . . . . . . . . . . . . . . . . Recycling Unit Hacks . | . . . . . . . . . . . . . . . . Scanalyzer 3 | . . . . . . . . . . . 3 . . . . Insert Component 1 | . . . . . . . . . . . 1 . . . . Analyze 2 | . . . . . . . . . . . 2 . . . . Garrison Access Hacks 2 | . . . . . 1 1 . . . . . . . . . Seal Access 2 | . . . . . 1 1 . . . . . . . . . Unauthorized Hacks 3 | . 1 . 1 . . . . . . . 1 . . . . Terminals 2 | . 1 . 1 . . . . . . . . . . . . Assimilate 1 | . 1 . . . . . . . . . . . . . . Botnet 1 | . . . 1 . . . . . . . . . . . . Fabricators 1 | . . . . . . . . . . . 1 . . . . Liberate 1 | . . . . . . . . . . . 1 . . . . Repair Stations . | . . . . . . . . . . . . . . . . Recycling Units . | . . . . . . . . . . . . . . . . Scanalyzers . | . . . . . . . . . . . . . . . . Garrison Access . | . . . . . . . . . . . . . . . . Data Cores Recovered . | . . . . . . . . . . . . . . . . Used . | . . . . . . . . . . . . . . . . Hacking Detections 18 | . 5 . 4 1 1 1 . . . . 6 . . . . Full Trace Events 3 | . 1 . . . . 1 . . . . 1 . . . . Feedback Events . | . . . . . . . . . . . . . . . . Feedback Blocked . | . . . . . . . . . . . . . . . . Robot Schematics Acquired 6 | . . . . . . . . . 6 . . . . . . Robots Built . | . . . . . . . . . . . . . . . . Authchips . | . . . . . . . . . . . . . . . . Time . | . . . . . . . . . . . . . . . . Total Robot Build Rating . | . . . . . . . . . . . . . . . . Part Schematics Acquired 10 | . . . . . . . . . 10 . . . . . . Parts Built . | . . . . . . . . . . . . . . . . Authchips . | . . . . . . . . . . . . . . . . Time . | . . . . . . . . . . . . . . . . Total Part Build Rating . | . . . . . . . . . . . . . . . . Parts Repaired . | . . . . . . . . . . . . . . . . Time . | . . . . . . . . . . . . . . . . Parts Recycled . | . . . . . . . . . . . . . . . . Recycled Matter . | . . . . . . . . . . . . . . . . Retrieved Matter . | . . . . . . . . . . . . . . . . Retrieved Components . | . . . . . . . . . . . . . . . . Parts Scanalyzed 1 | . . . . . . . . . . . 1 . . . . Part Schematics Acquired . | . . . . . . . . . . . . . . . . Parts Damaged . | . . . . . . . . . . . . . . . . Bothacking | -11 -10 -10 -9 -9 -8 -7 -7 -7 -7 -6 -6 -6 -6 -6 -6 ------------ Run | Scr Mat Min Mat Min Mat Fac Low Low Dat Pro Fac Low Low Zio Dee Used RIF Installer . | . . . . . . . . . . . . . . . . Robots Hacked . | . . . . . . . . . . . . . . . . Non-combat . | . . . . . . . . . . . . . . . . Combat . | . . . . . . . . . . . . . . . . Robot Hacks Applied . | . . . . . . . . . . . . . . . . Relay Couplers Released . | . . . . . . . . . . . . . . . . Fabnet Peak Effective % . | . . . . . . . . . . . . . . . . Robots Rewired . | . . . . . . . . . . . . . . . . Allies Hacked . | . . . . . . . . . . . . . . . . Hacks Repelled . | . . . . . . . . . . . . . . . . Allies | -11 -10 -10 -9 -9 -8 -7 -7 -7 -7 -6 -6 -6 -6 -6 -6 -------- Run | Scr Mat Min Mat Min Mat Fac Low Low Dat Pro Fac Low Low Zio Dee Total Allies 8 | . 1 1 . . . . . . . 1 3 . . 2 . Largest Group 3 | . 1 1 1 . . . . . . 1 3 . . 2 2 Highest-Rated Group 192 | . 10 31 31 . . . . . . 96 96 . . 192 192 Highest-Rated Ally 96 | . 10 31 31 . . . . . . 96 96 . . 96 96 Total Orders . | . . . . . . . . . . . . . . . . Ally Attacks 59 | . . . 3 . . . . . . 8 7 . . . 41 Total Damage 1676 | . . . 43 . . . . . . 372 235 . . . 1026 Kills 10 | . . . 1 . . . . . . 3 1 . . . 5 Allies Corrupted . | . . . . . . . . . . . . . . . . Allies Melted 1 | . . . . . . . . . . . 1 . . . . Intel | -11 -10 -10 -9 -9 -8 -7 -7 -7 -7 -6 -6 -6 -6 -6 -6 ------- Run | Scr Mat Min Mat Min Mat Fac Low Low Dat Pro Fac Low Low Zio Dee Robot Analysis Total . | . . . . . . . . . . . . . . . . Derelict Logs Recovered 7 | . . 2 . . . . 2 2 . . . . 1 . . Drone Launches . | . . . . . . . . . . . . . . . . Drone Recoveries . | . . . . . . . . . . . . . . . . Exploration | -11 -10 -10 -9 -9 -8 -7 -7 -7 -7 -6 -6 -6 -6 -6 -6 ------------- Run | Scr Mat Min Mat Min Mat Fac Low Low Dat Pro Fac Low Low Zio Dee Turns Passed 14278 | . 951 1040 1144 382 961 1481 616 680 144 381 2404 848 488 1634 1124 Spaces Moved 7669 | 1 555 598 468 239 425 858 388 365 90 218 1196 480 302 1015 471 Core 1 | . . . . . . . . . . . . . . . 1 Treads 800 | . . 511 289 . . . . . . . . . . . . Legs 643 | 1 555 87 . . . . . . . . . . . . . Wheels 6225 | . . . 179 239 425 858 388 365 90 218 1196 480 302 1015 470 Hover . | . . . . . . . . . . . . . . . . Flight . | . . . . . . . . . . . . . . . . Fastest Speed 50 | 120 120 160 135 150 135 155 140 140 160 155 145 140 145 145 50 Average Speed 158 | 120 144 164 208 150 146 155 152 152 160 159 164 144 146 154 170 Slowest Speed 320 | 120 190 190 320 150 215 155 155 160 160 160 275 210 205 160 270 Overloaded Moves . | . . . . . . . . . . . . . . . . Propulsion Burnouts . | . . . . . . . . . . . . . . . . Robots Hopped . | . . . . . . . . . . . . . . . . Cave-ins Triggered . | . . . . . . . . . . . . . . . . Exploration Rate (%) 56 | 2 94 98 48 46 45 18 74 65 72 44 27 66 53 85 64 Regions Visited 15 Branch Regions 10 Pre-discovered Areas 4 | . . 1 . 1 . . . 1 1 . . . . . . Known Exits Taken 5 | . . . 1 1 . 1 1 . . . 1 . . . . Unknown Exits Taken 10 | 1 1 1 . . 1 . . 1 1 1 . 1 1 1 . Scrap Searched 19 | . . 1 . 1 . . 1 7 . 2 . 2 1 4 . Spaces Dug 50 | . . . . . . . . 27 . . 2 18 . 3 . Terrain Destroyed 366 | . 14 16 . . . 15 39 58 . 18 75 50 12 3 66 Melee 3 | . . . . . . . . . . . . . . 3 . Projectile 11 | . . . . . . 2 . . . . 5 3 . . 1 AOE 351 | . 14 16 . . . 13 39 58 . 18 69 47 12 . 65 Terrain Rammed . | . . . . . . . . . . . . . . . . Walls Destroyed . | . . . . . . . . . . . . . . . . Machines Disabled . | . . . . . . . . . . . . . . . . Actions | -11 -10 -10 -9 -9 -8 -7 -7 -7 -7 -6 -6 -6 -6 -6 -6 --------- Run | Scr Mat Min Mat Min Mat Fac Low Low Dat Pro Fac Low Low Zio Dee Total 8928 | . 634 643 577 256 588 967 400 435 92 238 1460 589 323 1068 658 Wait 330 | . 26 14 38 8 31 23 . 31 . . 35 68 . 9 47 Move 7654 | . 554 597 467 238 424 857 387 364 89 217 1195 479 301 1014 471 Hop . | . . . . . . . . . . . . . . . . Pick Up 107 | . 9 8 16 3 11 16 1 2 . 4 22 1 . 9 5 Fast Attach 55 | . 1 . 4 . 6 7 . 2 . 1 19 7 1 7 . Attach 58 | . 1 1 4 1 8 4 4 5 . 4 13 1 2 1 9 Detach 16 | . . . 4 . 1 . . 1 3 . 1 3 1 1 1 Swap 86 | . 4 5 5 . 7 8 . 5 . 7 23 3 4 4 11 Drop 122 | . 1 8 10 2 16 25 1 . . . 37 4 1 14 3 Fire 405 | . 38 7 28 4 84 27 7 25 . 5 95 23 13 . 49 Melee 71 | . . . . . . . . . . . . . . 9 62 Ram 2 | . . . 1 . . . . . . . 1 . . . . Kick . | . . . . . . . . . . . . . . . . Crush . | . . . . . . . . . . . . . . . . Escape Stasis 16 | . . . . . . . . . . . 16 . . . . Rewire 6 | . . 3 . . . . . . . . 3 . . . . Trap . | . . . . . . . . . . . . . . . . Miscellaneous . | . . . . . . . . . . . . . . . . Route ------- -11/Scrapyard -10/Materials (discovered 5 exits: *Mat x3 / *Min x2) -10/Mines (discovered 2 exits: *Mat x2) -9/Materials (discovered 5 exits: *Mat x3 / *Min x2) -9/Mines -8/Materials -7/Factory (discovered 4 exits: Sto x2 / *Low x2) -7/Lower Caves -7/Lower Caves (discovered 2 exits: *Fac / *Dat) -7/Data Miner -6/Proximity Caves -6/Factory (discovered 4 exits: [*Fac x2] / *Low x2) -6/Lower Caves -6/Lower Caves (discovered 2 exits: [*Fac] / *Zio) -6/Zion (discovered 2 exits: [*Dee] / [*Pro]) -6/Deep Caves History --------- Turn | Location | Event 1 | -11/Scrapyard | Discovered new exit (range 0) 1 | -11/Scrapyard | Entered Materials 66 | -10/Materials | Discovered new exit (range 11) 227 | -10/Materials | Discovered new exit (range 16) 305 | -10/Materials | Build established: Mutant 342 | -10/Materials | Discovered new exit (range 7) 390 | -10/Materials | Discovered new exit (range 15) 907 | -10/Materials | Discovered new exit (range 9) 952 | -10/Materials | Entered Mines 985 | -10/Mines | Discovered new exit (range 12) 1094 | -10/Mines | Found a damaged Exp. Sensor Array with a note attached 1106 | -10/Mines | Found Prototype Device 1276 | -10/Mines | Met a Derelict shopkeep closing up shop 1796 | -10/Mines | Discovered new exit (range 8) 1812 | -10/Mines | Joined a pair of Derelicts in attacking an 0b10 outpost 1918 | -10/Mines | Met a Derelict testing a Signal Generator 1992 | -10/Mines | Entered Materials 1992 | -9/Materials | Accompanied by 1 ally 1992 | -9/Materials | Evolved 2 slots: Utility x1, Weapon x1 2744 | -9/Materials | Discovered new exit (range 10) 2825 | -9/Materials | Build established: Scavenger-Tank 2976 | -9/Materials | Identified exit to Materials 2997 | -9/Materials | Identified exit to Mines 3136 | -9/Materials | Entered Mines 3137 | -9/Mines | Assembled infested the area 3142 | -9/Mines | Assisted by a Guerilla fighting off Assembled 3411 | -9/Mines | Received a Rocket Launcher from a helpful Derelict 3508 | -9/Mines | Discovered exit to Materials (range 6) 3516 | -9/Mines | Learned location of Storage (-7) 3518 | -9/Mines | Entered Materials 3518 | -8/Materials | Evolved 2 slots: Utility x2 3634 | -8/Materials | Garrison activated, responded to threat 4205 | -8/Materials | Build established: Scavenger-Skirmisher 4429 | -8/Materials | Discovered new exit (range 16) 4479 | -8/Materials | Entered Factory 4479 | -7/Factory | Evolved 2 slots: Power x1, Utility x1 4480 | -7/Factory | Identified exit to Storage 4764 | -7/Factory | Identified exit to Lower Caves 5960 | -7/Factory | Entered Lower Caves 6219 | -7/Lower Caves | Learned Factory non-interactive machine intel 6303 | -7/Lower Caves | Spotted B-75 Beast 6386 | -7/Lower Caves | Encountered a Warlord checkpoint 6399 | -7/Lower Caves | Learned 4 Factory zone layouts 6555 | -7/Lower Caves | Lost 6 parts (2p1n1u2w) 6563 | -7/Lower Caves | Discovered new exit (range 8) 6574 | -7/Lower Caves | Identified exit to Lower Caves 6576 | -7/Lower Caves | Entered another Lower Caves area 6682 | -7/Lower Caves | Learned location of Zion (-6) 6731 | -7/Lower Caves | Discovered new exit (range 6) 6786 | -7/Lower Caves | System corruption reached 10% 6800 | -7/Lower Caves | Learned Factory terminal intel 6819 | -7/Lower Caves | Lost 4 parts (2u2w) 7235 | -7/Lower Caves | Discovered new exit (range 14) 7256 | -7/Lower Caves | Entered Data Miner 7256 | -7/Data Miner | Discovered new exit (range 8) 7287 | -7/Data Miner | Met Data Miner 7327 | -7/Data Miner | Learned location of Section 7 (-2) 7327 | -7/Data Miner | Acquired the access code to Warlord's prototype stash 7349 | -7/Data Miner | Received God Mode back door access code from Data Miner 7400 | -7/Data Miner | Entered Proximity Caves 7432 | -6/Proximity Caves | Identified Exp. Sensor Array 7599 | -6/Proximity Caves | Escorted by Enhanced Grunt 7695 | -6/Proximity Caves | Discovered new exit (range 6) 7781 | -6/Proximity Caves | Entered Factory 7781 | -6/Factory | Accompanied by 1 ally 7781 | -6/Factory | Evolved 2 slots: Utility x2 7783 | -6/Factory | Loaded intel: 177 non-interactive machine locations 7784 | -6/Factory | Loaded intel: 26 terminal locations 8009 | -6/Factory | Build established: Derelict-Tank 8244 | -6/Factory | Lost 4 parts (3u1w) 8270 | -6/Factory | Discovered new exit (range 12) 9049 | -6/Factory | System corruption reached 10% 9106 | -6/Factory | Spotted B-75 Beast 9129 | -6/Factory | Garrison activated, responded to threat 9167 | -6/Factory | Lost 4 parts (1p2u1w) 9434 | -6/Factory | Build established: Mutant 9706 | -6/Factory | Identified exit to Lower Caves 9787 | -6/Factory | Build established: Hacker-Tank 9940 | -6/Factory | Discovered new exit (range 15) 10081 | -6/Factory | Incoming investigation squad redirected 10185 | -6/Factory | Entered Lower Caves 10323 | -6/Lower Caves | Encountered a Warlord checkpoint 10355 | -6/Lower Caves | Attracted the attention of an 0b10 checkpoint 10812 | -6/Lower Caves | Build established: Mutant 10968 | -6/Lower Caves | Discovered new exit (range 6) 11033 | -6/Lower Caves | Entered another Lower Caves area 11045 | -6/Lower Caves | Discovered new exit (range 8) 11062 | -6/Lower Caves | Attracted the attention of an 0b10 checkpoint 11068 | -6/Lower Caves | Core integrity fell below 50% 11339 | -6/Lower Caves | Encountered a Warlord checkpoint 11487 | -6/Lower Caves | Discovered new exit (range 13) 11521 | -6/Lower Caves | Entered Zion 11580 | -6/Zion | System corruption cleaned by Quarantine Array 11704 | -6/Zion | Found Prototype Device 11759 | -6/Zion | Discovered new exit (range 22) 11932 | -6/Zion | Build established: Tank 12004 | -6/Zion | Identified Phasing AFG 12007 | -6/Zion | Found GAL Module 12138 | -6/Zion | Given A8's code to call for help 12335 | -6/Zion | Found Prototype Special Weapon 12339 | -6/Zion | Found Prototype Special Weapon 12342 | -6/Zion | Found Prototype Special Weapon 12345 | -6/Zion | Found Prototype Special Weapon 12866 | -6/Zion | Enhanced Grunt warped into view, answering call for help 12869 | -6/Zion | Enhanced Grunt warped into view, answering call for help 12899 | -6/Zion | Discovered new exit (range 4) 12901 | -6/Zion | Saw the warning signs outside the Deep Caves entrance 13155 | -6/Zion | Entered Deep Caves 13155 | -6/Deep Caves | Accompanied by 2 allies 13348 | -6/Deep Caves | Attacked by Z-Imprinter 13357 | -6/Deep Caves | Destroyed Z-Imprinter 13467 | -6/Deep Caves | Z-Facility disabled 13636 | -6/Deep Caves | Spotted as-06955 13696 | -6/Deep Caves | Destroyed as-06955 13720 | -6/Deep Caves | Exposed GOLEM chamber 13722 | -6/Deep Caves | Lost 5 parts (1n3u1w) 13753 | -6/Deep Caves | Triggered Deep Caves wall 13753 | -6/Deep Caves | Spotted AS-87249 13759 | -6/Deep Caves | Spotted AS-85555 13772 | -6/Deep Caves | Identified RU-N14's Throwing Claymores (x4) 13781 | -6/Deep Caves | Destroyed AS-85555 13788 | -6/Deep Caves | Destroyed AS-87249 13807 | -6/Deep Caves | Destroyed 40 combat bots 13939 | -6/Deep Caves | Found GOLEM Unit 13944 | -6/Deep Caves | Found GOLEM Unit 13951 | -6/Deep Caves | Found GOLEM Unit 13998 | -6/Deep Caves | Spotted as-02108 14081 | -6/Deep Caves | Build established: Derelict-Mutant 14169 | -6/Deep Caves | Spotted as-96003 14172 | -6/Deep Caves | Spotted as-75902 14181 | -6/Deep Caves | Spotted as-95340 14183 | -6/Deep Caves | Spotted as-63250 14188 | -6/Deep Caves | Spotted as-50067 14188 | -6/Deep Caves | Spotted as-46547 14199 | -6/Deep Caves | Spotted as-40670 14240 | -6/Deep Caves | Spotted as-59244 14245 | -6/Deep Caves | Core integrity fell below 20% 14252 | -6/Deep Caves | Spotted as-83241 14262 | -6/Deep Caves | Spotted as-91866 14275 | -6/Deep Caves | Spotted as-00037 14275 | -6/Deep Caves | Spotted as-46452 14279 | -6/Deep Caves | Released all parts (8) 14279 | -6/Deep Caves | Destroyed by as-50067 with Assembled Focal Cannon Last Messages --------------- 14233_ as-95340 GOLEM Unit beginning Prototype Protection integration. 14240_ Rnf. Deuterium Engine destroyed. 14242_ Magnetic Acceleration Cannon destroyed. 14243_ Hrd. Heavy Armor Plating destroyed. 14245_ Lrn. Missile Launcher destroyed. 14257_ as-75902 suffers critical hit (Impale). 14259_ QHS/RJ,7ROEZU6I<5/CM5G4P7UY5B4Z 14259_ Mak. Thermal Plating destroyed. 14267_ Imp. Deuterium Engine destroyed. 14276_ Mak. Armor Plating destroyed. 14278_ Arm. Huge Wheel destroyed. 14279_ GOLEM Unit beginning Asb. Alloy Leg integration. 14279_ Released Mak. Armor Plating. 14279_ Released Mak. Spear. 14279_ Released Coolant Injector. 14279_ Released Enh. Optical Array. 14279_ Released Huge Storage Unit. 14279_ Released Adv. Targeting Computer. 14279_ Released GOLEM Unit. 14279_ Released Asb. Alloy Leg. Map ----- +----------------------------------------------------+ | ?????????????????????????????????????????????????? | | ????????????#????????????????????????????????????? | | ??????????? #????????????????????????????????????? | | ??????????? #????????????????????????????????????? | | ??????????? #???????????? ????????????????????? | | ??????????? #???????????? #???????????????????? | | ??????????? #????????????? #??????????????????? | | ??????????? #?????????????? ??????????????????? | | ??????????? ##????????????? ?????????????????? | | ?????????? #?????????????? ???????????????? | | #????????? ##?????????????? ??????????????? | | ?????????? ##?????????????# ????????????? | | ?????????? ##????????????# ????????????? # | | #####????? ##??????????## #??????????? # | | ## ????? #??????????# ####???#### # | | ?# #???? #??????????# ##?? | | ## #### ???????####?# ### | | ## ## ????????## ##?# | | ## #?????????# #??? | | #?# #??????????# ?????? | | #?# ##??????????# ???????# #??? | | #?# ##???????????# #????????# #???? | | #### ##?????????????#| #??####??# ##???? | | "#?## ##???????###????#[!#### ##?# ####????? | | ##??# ####????## ##??#/[!## ### ##???????? | | #??# ##"###### #??#!@!]! G########### | | #??# # #?##![=] | | #### % " # ###||G## | | %%## """ ## ## &!##### | | "" #?# ;#???## ## ###### | | #?## GGG###????# #???? | | ## #####??## ##??????## #???? | | #### ## ##??????# ;#????????# #???? | | #??# "#??????# ##????????# #???? | | "#??#### ####"#### ###??????## #??? | | ##?????# GG #???????###### #?? | | #??????######"###;## #????????????##### #?? | | ????????????????##### #????????????????## #?? | | ?????????????????????####??????????????????#####?? | | ?????????????????????????????????????????????????? | | | | | | | | | | | | | | | | | | | | | +----------------------------------------------------+ Best States ------------- Heat Dissipation 105 Coolant Potential 65 Energy Generation 31 Energy Capacity 740 Matter Stores 300 Matter Capacity 300 Sight Range 22 Robot Scan Range 20 Terrain Scan Density 85 Armor Coverage 825 Resistance: TH 10 Resistance: EM 25 Core Shielding 20 Propulsion Shielding 66 Evasion (%) 55 Targeting Accuracy 8 Recoil Reduction 4 Offensive Hacking 20 Item Schematics ----------------- Combat Drone Bay | -7/Data Miner | Free Lgt. Regenerative Plating | -7/Data Miner | Free Biomechanical Wings | -7/Data Miner | Free Gravity Neutralizer | -7/Data Miner | Free Antimatter Cannon | -7/Data Miner | Free Hvy. Treads | -7/Data Miner | Free Lyr. Heavy Armor Plating | -7/Data Miner | Free Tesla Rifle | -7/Data Miner | Free Adv. System Shield | -7/Data Miner | Free Imp. Armor Integrity Analyzer | -7/Data Miner | Free Robot Schematics ------------------ P-60 Hacker | -7/Data Miner | Free M-28 Smith | -7/Data Miner | Free H-66 Slayer | -7/Data Miner | Free E-15 Imp | -7/Data Miner | Free L-41 Fighter | -7/Data Miner | Free B-60 Warrior | -7/Data Miner | Free Fabricated ------------ Nothing Alien Tech Used ----------------- None Achievements -------------- None Challenges ------------ None Game ------ Seed ThrowingNodeDatajack Manual? 0 Play Time 01:24:16 Cumulative 399.2 hours Start 2022.07.14 @ 12:16:10 End 2022.07.14 @ 14:13:25 Sessions 1 Manual Loads 0 Difficulty Rogue Special Mode None Game No. 460 Rogue 459 Adventurer 0 Explorer 1 Win Type - Total 9 Types 6/0/1/2/0/0/0/0/0 Lore% 75 Gallery% 86 Achievement% 66 Wizard Run 0 Options --------- ASCII 0 Keyboard 1 Movement Vi Keybinds 0 Fullscreen 1 Font 18/SmallcapsGlow Map View 76x50 Tactical HUD 1 Map Filters NONE Filters NONE Steam 1 RUN: de6a22dd-cbb5-4f93-abf9-225dca8156bc